bitfinex/quotes_SOLUSD_20240712
["timestamp","ask_amount","ask_price","bid_price","bid_amount"]
[1720794590112,7.2156,138.59,138.52,20.0]
[1720794590310,7.215,138.6,138.52,20.0]
[1720794590709,7.2155,138.59,138.52,20.0]
[1720794590917,31.75,138.62,138.52,20.0]
[1720794591225,7.2148,138.61,138.52,20.0]
[1720794591999,7.215,138.6,138.52,20.0]
[1720794592219,7.2155,138.59,138.52,20.0]
[1720794593319,7.215,138.6,138.52,20.0]
[1720794593521,10.0,138.62,138.53,6.3271]
[1720794593723,17.2143,138.62,138.54,20.0]
[1720794594019,7.215,138.6,138.54,20.0]
[1720794594398,7.2145,138.61,138.54,20.0]
[1720794594597,17.2141,138.62,138.55,15.145]
[1720794594901,7.2146,138.61,138.56,0.68311585]
[1720794595091,17.2141,138.62,138.56,0.68311585]
[1720794595516,3.06862243,138.64,138.56,20.68311585]
[1720794595723,25.3144,138.67,138.56,0.68311585]
[1720794595921,10.0,138.67,138.56,46.44285366]
[1720794596110,7.2123,138.66,138.57,22.0047]
[1720794596313,7.2123,138.66,138.58,1.44274959]
[1720794596725,7.2124,138.65,138.58,21.44274959]
[1720794596906,7.212,138.66,138.58,21.44274959]
[1720794597319,10.27962243,138.68,138.58,21.44274959]
[1720794597505,7.2106,138.69,138.6,15.4308]
[1720794597807,7.2106,138.69,138.61,21.44236332]
[1720794598017,7.2113,138.67,138.61,21.44236332]
[1720794598332,7.211,138.68,138.61,21.44236332]
[1720794599008,7.2108,138.68,138.61,21.44236332]
[1720794600314,7.2105,138.69,138.62,6.5986]
[1720794600515,7.2105,138.69,138.63,21.44215523]
[1720794601018,7.21,138.7,138.63,21.44215523]
[1720794601630,7.2094,138.71,138.64,15.1839]
[1720794601930,7.2094,138.71,138.65,21.4419472]
[1720794602298,7.2098,138.7,138.65,21.4419472]
[1720794602507,18.0222,138.72,138.65,21.4419472]
[1720794602706,7.2105,138.69,138.65,21.4419472]
[1720794603010,7.2094,138.71,138.65,21.4419472]
[1720794603526,7.2074,138.75,138.66,45.0]
[1720794603741,7.208,138.74,138.67,21.44179161]
[1720794604032,13.93875373,138.76,138.68,20.0]
[1720794604033,7.2082,138.73,138.68,20.0]
[1720794604210,10.0,138.74,138.66,1.44201419]
[1720794604405,31.95555373,138.76,138.66,1.44201419]
[1720794604724,7.2083,138.73,138.66,1.44201419]
[1720794605531,7.2078,138.74,138.66,1.44201419]
[1720794605728,7.2074,138.75,138.66,1.44201419]
[1720794606633,7.2077,138.74,138.66,1.44201419]
[1720794606839,7.2073,138.75,138.67,21.8975]
[1720794607122,0.8701313,138.76,138.68,21.44157333]
[1720794607429,7.2073,138.75,138.68,20.0]
[1720794607823,0.8701313,138.76,138.68,20.0]
[1720794608027,0.8701313,138.76,138.69,45.0]
[1720794608234,0.8701313,138.76,138.7,20.0]
[1720794608944,0.8701313,138.76,138.71,15.6269]
[1720794609144,0.8701313,138.76,138.72,20.0]
[1720794609321,0.8701313,138.76,138.73,1.44113824]
[1720794609723,0.8701313,138.76,138.72,20.0]
[1720794609942,0.8701313,138.76,138.73,6.4391]
[1720794613357,0.8701313,138.76,138.74,20.0]
[1720794614241,2.80846315,138.84,138.75,15.1948]
[1720794614441,7.2024,138.85,138.76,20.0]
[1720794614938,7.2031,138.83,138.76,20.0]
[1720794615136,7.2039,138.82,138.76,20.0]
[1720794615336,7.2032,138.83,138.76,20.0]
[1720794615537,7.2038,138.82,138.76,20.0]
[1720794615739,7.2032,138.83,138.76,20.0]
[1720794615942,31.75,138.84,138.76,20.0]
[1720794615943,7.2036,138.82,138.76,20.0]
[1720794616148,7.2036,138.82,138.76,21.44099905]
[1720794616722,7.2032,138.83,138.76,21.44099905]
[1720794616935,37.8627,138.86,138.77,1.4408952]
[1720794617344,45.0646,138.86,138.77,1.4408952]
[1720794617551,38.9519,138.86,138.77,1.4408952]
[1720794617839,28.9518,138.86,138.77,1.4408952]
[1720794618036,34.81862243,138.88,138.78,21.7236]
[1720794618245,7.2005,138.88,138.79,21.44056508]
[1720794618442,7.2005,138.88,138.8,1.44046166]
[1720794620146,8.0699313,138.9,138.8,1.44046166]
[1720794620348,0.8701313,138.9,138.81,15.1213]
[1720794620656,0.8701313,138.9,138.82,21.44019782]
[1720794620865,0.8701313,138.9,138.83,1.44010155]
[1720794621854,8.0696313,138.9,138.83,1.44010155]
[1720794622238,0.8701313,138.9,138.83,1.44018655]
[1720794622549,7.2002,138.89,138.82,20.0]
[1720794622747,7.2004,138.88,138.82,20.0]
[1720794622957,7.2,138.89,138.82,20.0]
[1720794623167,0.8701313,138.9,138.83,1.43852647]
[1720794624054,0.8701313,138.9,138.82,20.0]
[1720794624366,0.8701313,138.9,138.83,0.86013605]
[1720794624680,7.2003,138.89,138.83,0.86013605]
[1720794624969,7.2003,138.89,138.82,20.0]
[1720794624970,7.201,138.87,138.82,20.0]
[1720794625149,32.6201313,138.9,138.82,20.0]
[1720794625348,52.1999,138.89,138.82,20.0]
[1720794625556,7.2007,138.88,138.82,20.0]
[1720794625766,7.2003,138.89,138.82,20.0]
[1720794626068,8.0696313,138.9,138.82,20.0]
[1720794626366,52.2,138.89,138.82,20.0]
[1720794626566,52.2001,138.89,138.82,20.0]
[1720794626962,7.2005,138.88,138.82,20.0]
[1720794627275,55.0,138.89,138.82,20.0]
[1720794627448,7.2016,138.86,138.82,20.0]
[1720794628061,52.2003,138.89,138.82,20.0]
[1720794628458,45.0,138.89,138.82,20.0]
[1720794628774,0.8701313,138.9,138.82,20.0]
[1720794629149,0.8701313,138.9,138.81,15.1213]
[1720794629150,10.0,138.87,138.81,15.1213]
[1720794629349,7.2031,138.83,138.78,6.3169]
[1720794629569,17.2018,138.86,138.78,6.3169]
[1720794629754,7.1783313,138.9,138.78,6.3169]
[1720794630068,7.2006,138.88,138.78,6.3169]
[1720794630249,7.2009,138.88,138.78,6.3169]
[1720794630452,45.0,138.87,138.79,20.0]
[1720794630762,76.75,138.89,138.79,20.0]
[1720794630763,7.2001,138.89,138.79,20.0]
[1720794630951,8.0695313,138.9,138.8,15.3612]
[1720794631147,45.0,138.89,138.81,20.0]
[1720794631384,55.0,138.89,138.81,20.0]
[1720794631550,8.0697313,138.9,138.81,20.0]
[1720794631747,10.0,138.89,138.81,20.0]
[1720794631968,7.2013,138.87,138.81,20.0]
[1720794632178,7.202,138.85,138.81,20.0]
[1720794632367,7.202,138.85,138.8,15.3612]
[1720794632368,7.2025,138.84,138.8,15.3612]
[1720794632546,63.0014,138.88,138.8,15.3612]
[1720794632547,52.2032,138.83,138.8,15.3612]
[1720794632757,7.2041,138.81,138.77,16.1021]
[1720794633176,76.75,138.83,138.77,16.1021]
[1720794633360,7.2054,138.79,138.74,6.6365]
[1720794633674,7.2047,138.8,138.73,16.1021]
[1720794633973,10.0,138.82,138.73,16.1021]
[1720794634181,52.2044,138.81,138.73,16.1021]
[1720794634530,45.0,138.81,138.74,20.0]
[1720794634783,52.2041,138.81,138.74,20.0]
[1720794635151,7.2031,138.83,138.75,1.44121932]
[1720794635379,7.2026,138.84,138.75,1.44121932]
[1720794635670,7.2021,138.85,138.76,6.31]
[1720794635981,31.75,138.86,138.77,21.44084089]
[1720794636471,31.75,138.84,138.77,20.0]
[1720794636998,7.2042,138.81,138.77,20.0]
[1720794637284,52.2046,138.8,138.74,20.0]
[1720794637583,7.204,138.82,138.74,20.0]
[1720794637773,31.75,138.84,138.74,20.0]
[1720794637964,45.0,138.83,138.74,20.0]
[1720794638275,52.2032,138.83,138.74,20.0]
[1720794638461,45.0,138.83,138.74,20.0]
[1720794638656,12.42415326,138.87,138.74,20.0]
[1720794638870,12.42415326,138.87,138.76,15.3679]
[1720794638871,7.201,138.87,138.76,15.3679]
[1720794639178,7.201,138.87,138.78,6.3156]
[1720794639474,7.2025,138.84,138.79,20.0]
[1720794639977,7.2032,138.83,138.79,20.0]
[1720794640273,7.2027,138.84,138.79,20.0]
[1720794640476,28.0014,138.88,138.79,20.0]
[1720794640679,7.2027,138.84,138.79,20.0]
[1720794640868,52.2032,138.83,138.79,20.0]
[1720794641177,10.0,138.86,138.79,20.0]
[1720794641367,45.0,138.85,138.79,20.0]
[1720794641573,7.2028,138.84,138.79,20.0]
[1720794641755,45.0,138.85,138.79,20.0]
[1720794641961,45.0,138.85,138.79,21.02573688]
[1720794642270,7.2016,138.86,138.79,20.0]
[1720794642893,7.2011,138.87,138.79,20.0]
[1720794643260,7.2025,138.84,138.79,20.0]
[1720794643875,7.2031,138.83,138.79,20.0]
[1720794644062,31.75,138.86,138.76,15.3679]
[1720794644063,10.0,138.84,138.76,15.3679]
[1720794644277,45.0,138.83,138.76,15.3679]
[1720794644773,52.2034,138.83,138.76,15.3679]
[1720794645079,45.0,138.83,138.76,15.3679]
[1720794645380,10.0,138.82,138.76,15.3679]
[1720794645579,7.2048,138.8,138.76,15.3679]
[1720794645879,7.2051,138.79,138.76,15.3679]
[1720794646081,7.2051,138.79,138.72,6.0627]
[1720794646082,7.2051,138.79,138.73,16.529]
[1720794646781,7.2047,138.8,138.73,16.529]
[1720794647257,7.2047,138.8,138.74,20.0]
[1720794647458,52.2043,138.81,138.74,20.0]
[1720794647665,7.2046,138.8,138.74,20.0]
[1720794647888,52.2055,138.79,138.74,20.0]
[1720794648082,7.2055,138.79,138.74,20.0]
[1720794648402,73.0111,138.81,138.74,21.44133635]
[1720794648403,7.2046,138.8,138.74,21.44133635]
[1720794648767,7.2046,138.8,138.74,20.0]
[1720794649267,7.202,138.85,138.74,20.0]
[1720794649575,10.0,138.86,138.74,20.0]
[1720794649576,23.65519276,138.84,138.74,20.0]
[1720794649770,7.2026,138.84,138.74,20.0]
[1720794649975,10.0,138.84,138.74,20.0]
[1720794650194,7.2029,138.84,138.75,15.8416]
[1720794650490,7.2029,138.84,138.76,20.0]
[1720794650867,7.2021,138.85,138.76,20.0]
[1720794651067,7.2016,138.86,138.77,6.5592]
[1720794651264,13.06862243,138.87,138.78,20.0]
[1720794651477,43.33,138.89,138.79,15.7879]
[1720794651698,31.69,138.89,138.8,20.0]
[1720794651887,7.2013,138.87,138.8,20.0]
[1720794652383,7.2015,138.86,138.8,20.0]
[1720794652587,7.2035,138.83,138.79,15.7879]
[1720794652774,7.2035,138.83,138.8,20.0]
[1720794652980,7.2027,138.84,138.8,20.0]
[1720794653697,7.2033,138.83,138.8,20.0]
[1720794654273,7.2041,138.81,138.74,15.7578]
[1720794654677,76.69,138.82,138.74,15.7578]
[1720794654981,7.2048,138.8,138.74,15.7578]
[1720794655302,7.2042,138.81,138.74,15.7578]
[1720794655490,45.0,138.8,138.74,15.7578]
[1720794656199,7.2052,138.79,138.74,15.7578]
[1720794656417,10.0,138.8,138.74,15.7578]
[1720794656572,45.0,138.79,138.74,15.7578]
[1720794657394,52.2051,138.79,138.75,20.0]
[1720794657798,52.2051,138.79,138.72,6.4126]
[1720794657799,10.0,138.77,138.71,15.471]
[1720794657981,10.0,138.75,138.71,15.471]
[1720794658401,45.0,138.76,138.71,15.471]
[1720794658705,52.207,138.76,138.71,15.471]
[1720794659975,45.0,138.76,138.71,15.471]
[1720794660180,45.0,138.77,138.71,15.471]
[1720794660374,7.2072,138.75,138.71,15.471]
[1720794660933,10.0,138.8,138.71,15.471]
[1720794661206,7.2061,138.78,138.72,20.0]
[1720794661399,10.0,138.8,138.72,20.0]
[1720794661400,7.2062,138.77,138.72,20.0]
[1720794661593,7.2067,138.76,138.72,20.0]
[1720794661800,7.2072,138.75,138.72,20.0]
[1720794662311,10.0,138.76,138.71,15.471]
[1720794662519,31.69,138.78,138.71,15.471]
[1720794663016,7.2068,138.76,138.71,15.471]
[1720794663196,52.2073,138.75,138.71,15.471]
[1720794663394,45.0,138.75,138.71,15.471]
[1720794663596,7.2067,138.76,138.71,15.471]
[1720794663897,7.2062,138.77,138.71,15.471]
[1720794664105,45.0,138.76,138.71,15.471]
[1720794664304,7.2075,138.75,138.71,15.471]
[1720794664612,7.2086,138.73,138.71,15.471]
[1720794664795,7.2087,138.72,138.71,15.471]
[1720794665013,7.2108,138.69,138.64,15.7133]
[1720794665203,7.2108,138.68,138.64,15.7133]
[1720794665814,10.0,138.7,138.64,15.7133]
[1720794666020,85.0,138.72,138.64,15.7133]
[1720794666216,52.2096,138.71,138.64,15.7133]
[1720794666518,7.2103,138.69,138.64,15.7133]
[1720794666708,10.0,138.7,138.64,15.7133]
[1720794666898,52.2105,138.69,138.65,20.0]
[1720794667101,40.0,138.72,138.65,20.0]
[1720794667398,7.2096,138.71,138.65,20.0]
[1720794667616,12.88158423,138.74,138.65,20.0]
[1720794667803,7.2079,138.74,138.65,20.0]
[1720794668123,7.2083,138.73,138.65,20.0]
[1720794668691,7.2082,138.74,138.65,20.0]
[1720794668890,7.2062,138.77,138.67,15.712]
[1720794669115,10.0,138.8,138.68,21.44026763]
[1720794669302,7.2056,138.79,138.68,21.44026763]
[1720794669613,7.2047,138.8,138.69,78.33]
[1720794669930,7.2053,138.79,138.7,21.44005994]
[1720794670228,31.69,138.75,138.67,15.712]
[1720794670407,10.0,138.73,138.67,15.712]
[1720794670596,7.2096,138.71,138.67,15.712]
[1720794671024,10.0,138.73,138.67,15.712]
[1720794671025,7.2084,138.73,138.67,15.712]
[1720794671231,28.0184,138.75,138.67,15.712]
[1720794671517,10.0,138.73,138.67,15.712]
[1720794671722,45.0,138.72,138.67,15.712]
[1720794671906,7.2104,138.69,138.67,15.712]
[1720794672105,7.211,138.68,138.58,22.9243]
[1720794672728,49.7135,138.71,138.58,22.9243]
[1720794672931,31.69,138.69,138.58,22.9243]
[1720794673222,7.212,138.66,138.58,22.9243]
[1720794673427,7.2124,138.65,138.58,22.9243]
[1720794674322,45.0,138.64,138.58,22.9243]
[1720794674828,45.0,138.64,138.58,30.1399]
[1720794674829,52.213,138.64,138.58,30.1399]
[1720794675032,52.213,138.64,138.59,7.2154]
[1720794675402,7.2134,138.63,138.58,30.1401]
[1720794675824,7.2134,138.63,138.58,22.9243]
[1720794676126,7.2134,138.63,138.58,30.1401]
[1720794676326,7.2141,138.62,138.58,22.9243]
[1720794676539,45.0,138.61,138.52,15.8874]
[1720794676716,52.2146,138.61,138.55,7.2172]
[1720794677224,45.0,138.61,138.52,15.8874]
[1720794677537,10.0,138.6,138.52,15.8874]
[1720794677707,45.0,138.59,138.52,15.8874]
[1720794678029,45.0,138.59,138.54,7.218]
[1720794678417,45.0,138.59,138.55,7.2174]
[1720794678619,6.3509,138.63,138.52,15.8874]
[1720794678923,7.2143,138.62,138.56,7.2166]
[1720794679134,7.2155,138.59,138.54,7.218]
[1720794679335,10.0,138.6,138.52,15.8874]
[1720794679639,45.0,138.59,138.53,1.44142992]
[1720794679807,28.0358,138.62,138.53,1.44142992]
[1720794679808,10.0,138.62,138.53,1.44142992]
[1720794680008,7.2153,138.6,138.53,1.44142992]
[1720794680423,7.2153,138.6,138.55,7.2172]
[1720794680804,7.2156,138.59,138.54,7.2181]
[1720794681017,45.0,138.61,138.55,20.0]
[1720794681218,7.2159,138.59,138.55,20.0]
[1720794681518,45.0,138.58,138.54,20.0]
[1720794681830,52.216,138.58,138.54,20.0]
[1720794682333,7.2153,138.6,138.54,20.0]
[1720794682503,45.0,138.59,138.53,28.65992992]
[1720794683012,45.0,138.59,138.53,21.44142992]
[1720794683224,7.2167,138.57,138.53,20.0]
[1720794683445,45.0,138.59,138.53,20.0]
[1720794683940,7.2162,138.58,138.53,27.2186]
[1720794684115,7.2163,138.58,138.52,23.1064]
[1720794684305,7.2167,138.57,138.52,23.1064]
[1720794684637,7.2162,138.58,138.53,7.2185]
[1720794685709,7.2166,138.57,138.52,23.1064]
[1720794685913,7.2162,138.58,138.53,27.2186]
[1720794686116,52.2157,138.59,138.54,7.2181]
[1720794686509,30.90626962,138.64,138.55,20.0]
[1720794686707,30.90626962,138.64,138.53,20.0]
[1720794686908,10.0,138.62,138.53,20.0]
[1720794687120,7.2154,138.6,138.55,7.2174]
[1720794687348,10.0,138.65,138.53,20.0]
[1720794687638,7.2136,138.63,138.58,7.216]
[1720794687835,10.0,138.65,138.59,7.2152]
[1720794688008,7.213,138.64,138.59,7.2152]
[1720794688208,7.2134,138.63,138.58,7.2158]
[1720794688411,7.2134,138.63,138.59,20.0]
[1720794688634,7.2139,138.62,138.59,20.0]
[1720794689141,7.2139,138.62,138.58,20.0]
[1720794689433,10.0,138.65,138.58,20.0]
[1720794689655,10.0,138.65,138.55,20.0]
[1720794689804,31.69,138.65,138.55,20.0]
[1720794690398,52.54149066,138.67,138.55,20.0]
[1720794690512,7.2134,138.63,138.58,7.2158]
[1720794690717,7.213,138.64,138.59,27.2155]
[1720794690922,45.0,138.66,138.6,7.2148]
[1720794691253,45.0,138.66,138.59,7.2154]
[1720794691456,7.2127,138.65,138.6,7.2148]
[1720794691748,7.2129,138.64,138.59,7.2154]
[1720794692442,7.2117,138.67,138.62,7.2138]
[1720794692755,13.2414,138.72,138.67,7.211]
[1720794693039,10.0,138.74,138.66,7.2117]
[1720794693245,7.2096,138.71,138.63,1.43986379]
[1720794693417,7.2098,138.7,138.65,7.2119]
[1720794693744,7.2077,138.75,138.66,26.1952]
[1720794693919,7.2077,138.75,138.67,15.5877]
[1720794694123,7.2078,138.74,138.68,1.236582]
[1720794694468,7.2083,138.73,138.68,1.236582]
[1720794694617,10.0,138.76,138.68,1.236582]
[1720794694934,7.208,138.74,138.68,1.236582]
[1720794695130,7.2083,138.73,138.67,35.5877]
[1720794695520,10.0,138.76,138.67,35.5877]
[1720794695719,7.2078,138.74,138.67,35.5877]
[1720794696432,45.0,138.75,138.68,0.54059256]
[1720794696626,45.0,138.75,138.67,35.5877]
[1720794697544,7.2075,138.75,138.67,35.5877]
[1720794697839,52.208,138.74,138.67,35.5877]
[1720794698013,7.208,138.74,138.67,35.5877]
[1720794698233,7.2077,138.75,138.67,35.5877]
[1720794698836,7.2068,138.76,138.67,35.5877]
[1720794699135,7.2068,138.76,138.68,1.43966786]
[1720794699837,10.0,138.77,138.67,35.5877]
[1720794700156,7.2082,138.73,138.67,35.5877]
[1720794700458,7.2093,138.71,138.67,15.5877]
[1720794700751,7.2088,138.72,138.67,15.5877]
[1720794700953,7.2083,138.73,138.67,15.5877]
[1720794701149,45.0,138.76,138.67,15.5877]
[1720794701350,7.208,138.74,138.67,15.5877]
[1720794702235,7.2083,138.73,138.68,20.0]
[1720794702757,10.0,138.79,138.68,20.0]
[1720794702941,7.207,138.76,138.68,20.0]
[1720794703130,18.0147,138.78,138.68,20.0]
[1720794703343,31.69,138.77,138.68,20.0]
[1720794703667,7.2082,138.73,138.69,1.44184208]
[1720794704937,31.69,138.74,138.67,15.5877]
[1720794705191,7.2103,138.7,138.67,15.5877]
[1720794705966,7.2103,138.69,138.67,15.5877]
[1720794706475,7.2108,138.68,138.63,15.2826]
[1720794706765,28.0251,138.7,138.63,15.2826]
[1720794706962,45.0,138.69,138.63,15.2826]
[1720794707159,7.2129,138.64,138.63,15.2826]
[1720794707362,7.2125,138.65,138.63,15.2826]
[1720794707741,7.212,138.66,138.63,15.2826]
[1720794707949,10.0,138.73,138.65,7.2119]
[1720794708168,7.2102,138.7,138.64,7.2128]
[1720794708353,7.2103,138.69,138.65,20.0]
[1720794708557,7.2104,138.69,138.65,20.0]
[1720794708767,7.2108,138.68,138.65,20.0]
[1720794709072,7.2108,138.68,138.64,20.0]
[1720794709252,7.2114,138.67,138.64,20.0]
[1720794709453,7.2109,138.68,138.64,20.0]
[1720794709653,10.0,138.71,138.64,21.44107064]
[1720794709862,45.0,138.7,138.64,20.0]
[1720794710066,7.2112,138.68,138.64,20.0]
[1720794710265,7.2104,138.69,138.64,21.44183243]
[1720794710471,7.2104,138.69,138.64,21.44181488]
[1720794710651,7.2104,138.69,138.64,20.0]
[1720794710851,7.2109,138.68,138.64,20.0]
[1720794711075,7.2113,138.67,138.64,20.0]
[1720794711267,7.2119,138.66,138.63,15.2826]
[1720794713065,30.0,138.65,138.63,22.4959]
[1720794713460,30.0,138.65,138.63,15.2826]
[1720794714015,7.2119,138.66,138.63,15.2826]
[1720794714180,45.0,138.7,138.63,15.2826]
[1720794714181,66.69,138.7,138.63,15.2826]
[1720794714478,7.211,138.68,138.63,22.4959]
[1720794714680,7.2105,138.69,138.64,7.2128]
[1720794714974,7.2109,138.68,138.63,15.2826]
[1720794715659,10.0,138.73,138.63,15.2826]
[1720794715859,10.0,138.73,138.64,20.0]
[1720794716270,31.69,138.73,138.64,20.0]
[1720794716569,7.2106,138.69,138.64,20.0]
[1720794716958,7.2109,138.68,138.64,20.0]
[1720794717166,7.2113,138.67,138.64,20.0]
[1720794717969,7.2122,138.66,138.63,15.2826]
[1720794718277,7.2124,138.65,138.63,15.2826]
[1720794718777,7.2119,138.66,138.63,15.2826]
[1720794719071,30.0,138.64,138.63,15.2826]
[1720794720266,7.2118,138.66,138.63,15.2826]
[1720794720466,7.2124,138.65,138.63,15.2826]
[1720794720958,7.2115,138.67,138.63,15.2826]
[1720794721174,10.0,138.7,138.63,15.2826]
[1720794721376,45.0,138.69,138.63,22.496]
[1720794721559,7.2113,138.68,138.63,22.496]
[1720794721768,28.0228,138.72,138.63,15.2826]
[1720794721973,7.2095,138.71,138.65,6.1646]
[1720794722182,7.2095,138.71,138.66,20.0]
[1720794722390,7.2087,138.72,138.66,20.0]
[1720794722687,24.1766,138.75,138.66,20.0]
[1720794722688,7.2082,138.73,138.66,20.0]
[1720794722987,7.2078,138.74,138.66,20.0]
[1720794723280,27.67872243,138.78,138.67,15.8526]
[1720794723281,31.69,138.75,138.67,15.8526]
[1720794723490,7.2098,138.7,138.68,20.0]
[1720794723665,7.2103,138.69,138.67,15.8526]
[1720794723861,7.2108,138.68,138.67,15.8526]
[1720794724078,7.2105,138.69,138.67,15.8526]
[1720794724290,7.2105,138.69,138.65,6.1646]
[1720794724595,7.2109,138.68,138.65,6.1646]
[1720794724892,7.2109,138.68,138.64,15.6651]
[1720794725066,10.0,138.69,138.64,15.6651]
[1720794725261,7.2124,138.65,138.64,15.6651]
[1720794725470,45.0,138.68,138.6,16.2454]
[1720794725471,31.69,138.67,138.6,16.2454]
[1720794725662,7.213,138.64,138.6,16.2454]
[1720794725864,10.0,138.65,138.6,16.2454]
[1720794726097,10.0,138.65,138.58,380.7]
[1720794726098,7.214,138.62,138.58,380.7]
[1720794726478,7.2145,138.61,138.58,380.7]
[1720794726802,45.0,138.64,138.57,21.4543]
[1720794726803,7.2152,138.6,138.57,21.4543]
[1720794727090,7.2145,138.61,138.57,21.4543]
[1720794727591,7.2136,138.63,138.57,28.6707]
[1720794727891,7.2141,138.62,138.57,28.6707]
[1720794728602,7.2141,138.62,138.58,20.0]
[1720794728901,7.2135,138.63,138.58,27.2156]
[1720794729070,52.2134,138.64,138.58,27.2158]
[1720794729394,52.2134,138.64,138.59,7.2154]
[1720794729569,7.2135,138.63,138.58,27.2159]
[1720794729996,10.0,138.69,138.58,20.0]
[1720794730197,7.2133,138.64,138.58,20.0]
[1720794730365,7.2134,138.63,138.58,28.65486696]
[1720794730675,55.0,138.67,138.58,21.43916696]
[1720794730859,45.0,138.67,138.58,21.43916696]
[1720794731265,10.0,138.65,138.58,20.0]
[1720794731486,45.0,138.64,138.58,20.0]
[1720794732009,7.2134,138.63,138.58,27.2156]
[1720794732181,49.7187,138.67,138.58,20.0]
[1720794732577,49.7187,138.67,138.58,27.2158]
[1720794732578,7.2138,138.63,138.58,27.2158]
[1720794732793,28.0314,138.65,138.58,20.0]
[1720794732965,45.0,138.64,138.58,20.0]
[1720794733169,45.0,138.64,138.58,27.2156]
[1720794733381,7.2129,138.64,138.59,7.215]
[1720794733593,31.69,138.67,138.58,20.0]
[1720794733906,31.69,138.67,138.59,7.2154]
[1720794733907,7.2133,138.64,138.59,7.2154]
[1720794734108,45.0,138.66,138.58,20.0]
[1720794734295,76.69,138.67,138.58,20.0]
[1720794734485,7.2137,138.63,138.58,27.2158]
[1720794734684,7.2141,138.62,138.58,20.0]
[1720794735695,7.2145,138.61,138.58,20.0]
[1720794735899,10.0,138.63,138.58,20.0]
[1720794736204,7.2151,138.6,138.57,15.0687]
[1720794736601,7.2145,138.61,138.57,15.0687]
[1720794736987,7.2152,138.6,138.57,15.0687]
[1720794737810,7.2146,138.61,138.57,15.0687]
[1720794738109,52.214,138.62,138.57,22.2851]
[1720794738694,7.214,138.62,138.57,22.2849]
[1720794739023,52.61986843,138.65,138.57,15.0687]
[1720794739319,7.2142,138.62,138.57,22.2849]
[1720794739515,10.0,138.65,138.58,20.0]
[1720794740014,7.2137,138.63,138.58,27.2159]
[1720794740203,7.2137,138.63,138.59,7.2154]
[1720794740601,7.2137,138.63,138.58,27.2158]
[1720794741917,7.213,138.64,138.59,7.2154]
[1720794742101,7.215,138.6,138.58,20.0]
[1720794742703,7.215,138.6,138.57,15.0687]
[1720794742989,55.0,138.63,138.58,20.0]
[1720794743193,7.2146,138.61,138.58,20.0]
[1720794743418,7.2141,138.62,138.58,20.0]
[1720794743594,52.2134,138.63,138.58,27.2157]
[1720794743796,7.2145,138.61,138.57,15.0687]
[1720794743998,7.2145,138.61,138.58,20.0]
[1720794744228,7.215,138.6,138.58,20.0]
[1720794744522,7.215,138.6,138.57,15.0687]
[1720794745111,45.0,138.63,138.57,22.2852]